fUSD/lending_fUSD_20260406
["ID","MTS","AMOUNT","RATE_DAILY","PERIOD"]
[419928080,1775513445903,-500.0,0.00013698,2]
[419928081,1775513445912,-500.0,0.00013698,2]
[419928082,1775513445921,-500.0,0.00013698,2]
[419928083,1775513445931,-500.0,0.00013698,2]
[419928084,1775513445940,-500.0,0.00013698,2]
[419928085,1775513445950,-180.22082836,0.00013699,2]
[419928086,1775513445964,-150.0,0.00013699,2]
[419928087,1775513445973,-150.0,0.00013699,2]
[419928088,1775513445982,-150.0,0.00013699,2]
[419928089,1775513445992,-150.0,0.00013699,2]
[419928090,1775513446001,-150.0,0.00013699,2]
[419928091,1775513446011,-150.0,0.00013699,2]
[419928092,1775513446020,-200.0,0.00013699,2]
[419928093,1775513446029,-1446.63,0.00013699,2]
[419928094,1775513446038,-158.36,0.00013699,2]
[419928095,1775513446047,-500.0,0.00013699,2]
[419928096,1775513446056,-500.0,0.00013699,2]
[419928097,1775513446067,-500.0,0.00013699,2]
[419928098,1775513446076,-500.0,0.00013699,2]
[419928099,1775513446085,-623.42048552,0.00013699,2]
[419928100,1775513446094,-500.0,0.00013699,2]
[419928101,1775513446104,-500.0,0.00013699,2]
[419928102,1775513446113,-500.0,0.00013699,2]
[419928103,1775513446122,-500.0,0.00013699,2]
[419928104,1775513446131,-500.0,0.00013699,2]
[419928105,1775513446141,-502.32819122,0.00013699,2]
[419928106,1775513446150,-500.0,0.00013699,2]
[419928107,1775513446159,-500.51473043,0.00013699,2]
[419928108,1775513446170,-500.0,0.00013699,2]
[419928109,1775513446180,-500.0,0.00013699,2]
[419928110,1775513446189,-501.87452311,0.00013699,2]
[419928111,1775513446198,-159.81870043,0.00013699,2]
[419928112,1775513446211,-343.11080515,0.00013699,2]
[419928113,1775513446221,-500.0,0.00013699,2]
[419928114,1775513446230,-501.7767113,0.00013699,2]
[419928115,1775513446239,-500.0,0.00013699,2]
[419928116,1775513446248,-500.0,0.00013699,2]
[419928117,1775513446258,-561.18350506,0.00013699,2]
[419928118,1775513446267,-500.0,0.00013699,2]
[419928119,1775513446276,-474.500506,0.00013699,2]
[419928120,1775513446285,-500.0,0.00013699,2]
[419928121,1775513446295,-500.0,0.00013699,2]
[419928122,1775513446304,-166.5524378,0.00013699,2]
[419928123,1775513446313,-500.48595489,0.00013699,2]
[419928124,1775513446323,-288.13754842,0.00013699,2]
[419928125,1775513446332,-500.0,0.00013699,2]
[419928126,1775513446342,-429.76417009,0.00013699,2]
[419928127,1775513446351,-500.0,0.00013699,2]
[419928128,1775513446360,-500.0,0.00013699,2]
[419928129,1775513446371,-352.48557695,0.00013699,2]
[419928130,1775513446380,-164.37135814,0.00013699,2]
[419928131,1775513446389,-503.55252603,0.00013699,2]
[419928132,1775513446398,-163.81595005,0.00013699,2]
[419928133,1775513446407,-500.0,0.00013699,2]
[419928134,1775513446416,-212.97420605,0.00013699,2]
[419928135,1775513446426,-152.0,0.0001376,9]
[419928136,1775513446435,-316.141408,0.00013781,2]
[419928137,1775513446444,-150.0,0.00013818,2]
[419928138,1775513446453,-501.0,0.00013918,2]
[419928139,1775513446463,-396.45,0.00013925,2]
[419928140,1775513446473,-150.0,0.00013973,2]
[419928141,1775513446482,-150.0,0.00013973,2]
[419928142,1775513446492,-150.0,0.00013973,2]
[419928143,1775513446501,-150.0,0.00013973,2]
[419928144,1775513446510,-150.0,0.00013973,2]
[419928145,1775513446519,-150.0,0.00013973,2]
[419928146,1775513446528,-200.0,0.00014,2]
[419928147,1775513446538,-855.85192254,0.00014006,2]
[419928148,1775513446547,-152.0,0.0001404,10]
[419928149,1775513446556,-155.05158054,0.00014048,2]
[419928150,1775513446565,-200.0,0.00014068,2]
[419928151,1775513446575,-1300.0,0.00014082,2]
[419928152,1775513446584,-3000.0,0.00014082,2]
[419928153,1775513446594,-160.0,0.00014111,2]
[419928154,1775513446603,-27331.93099935,0.00014122,2]
[419928155,1775513446613,-500.0,0.00014184,2]
[419928156,1775513446622,-500.0,0.00014184,2]
[419928157,1775513446631,-500.0,0.00014184,2]
[419928158,1775513446640,-500.0,0.00014184,2]
[419928159,1775513446650,-500.0,0.00014184,2]
[419928160,1775513446659,-500.0,0.00014184,2]
[419928161,1775513446669,-500.0,0.00014184,2]
[419928162,1775513446678,-500.0,0.00014184,2]
[419928163,1775513446687,-500.0,0.00014184,2]
[419928164,1775513446696,-639.79,0.00014184,2]
[419928165,1775513446706,-500.0,0.00014184,2]
[419928166,1775513446715,-503.57594394,0.00014184,2]
[419928167,1775513446725,-500.0,0.00014184,2]
[419928168,1775513446734,-637.4,0.00014184,2]
[419928169,1775513446743,-500.0,0.00014184,2]
[419928170,1775513446752,-500.0,0.00014184,2]
[419928171,1775513446761,-500.0,0.00014184,2]
[419928172,1775513446770,-500.0,0.00014184,2]
[419928173,1775513446780,-500.0,0.00014184,2]
[419928174,1775513446789,-3017.12385345,0.00014212,2]
[419928175,1775513446798,-1116.0,0.00014223,2]
[419928176,1775513446807,-386.065975,0.00014232,7]
[419928177,1775513446817,-206.657308,0.00014232,7]
[419928178,1775513446826,-152.94716529,0.00014235,2]
[419928179,1775513446835,-150.0,0.00014247,2]
[419928180,1775513446844,-150.0,0.00014247,2]
[419928181,1775513446853,-150.0,0.00014247,2]
[419928182,1775513446862,-150.0,0.00014247,2]
[419928183,1775513446871,-1000.0,0.00014247,2]
[419928184,1775513446880,-1000.0,0.00014247,2]
[419928185,1775513446889,-1000.0,0.00014247,2]
[419928186,1775513446898,-1002.38345073,0.00014247,2]
[419928187,1775513446907,-1038.69136306,0.00014247,2]
[419928188,1775513446916,-501.47117302,0.00014247,2]
[419928189,1775513446925,-610.88201317,0.00014247,2]
[419928190,1775513446934,-1000.0,0.00014247,2]
[419928191,1775513446944,-505.26388851,0.00014247,2]
[419928192,1775513446953,-1000.0,0.00014247,2]
[419928193,1775513446963,-501.68959435,0.00014247,2]
[419928194,1775513446972,-1000.0,0.00014247,2]
[419928195,1775513446981,-1110.42839416,0.00014247,2]
[419928196,1775513446991,-1000.0,0.00014247,2]
[419928197,1775513447000,-1000.0,0.00014247,2]
[419928198,1775513447009,-1000.0,0.00014247,2]
[419928199,1775513447019,-500.0,0.00014247,2]
[419928200,1775513447028,-462.26,0.00014278,2]
[419928201,1775513447037,-462.28112601,0.00014278,2]
[419928202,1775513447046,-213.6407,0.000143,2]
[419928203,1775513447055,-152.0,0.0001432,11]
[419928204,1775513447065,-1446.63,0.00014384,2]
[419928205,1775513447075,-155.67,0.00014391,2]
[419928206,1775513447084,-2811.0,0.000144,2]
[419928207,1775513447093,-162.0,0.000144,2]
[419928208,1775513447102,-162.0,0.000144,2]
[419928209,1775513447111,-2811.0,0.000144,2]
[419928210,1775513447120,-1573.0,0.000144,2]
[419928211,1775513447129,-1573.0,0.000144,2]
[419928212,1775513447138,-1165.0,0.000144,2]
[419928213,1775513447148,-351.0,0.000144,4]
[419928214,1775513447157,-661.30319743,0.000144,4]
[419928215,1775513447165,-785.79,0.00014436,2]
[419928216,1775513447174,-985.59,0.00014436,2]
[419928217,1775513447184,-500.0,0.00014548,2]
[419928218,1775513447193,-177.35,0.00014584,2]
[419928219,1775513447203,-152.0,0.000146,12]
[419928220,1775513447212,-200.0,0.00014616,2]
[419928221,1775513447221,-27331.93099935,0.0001462,2]
[419928222,1775513447230,-1252.0,0.0001466,2]
[419928223,1775513447239,-462.26,0.00014697,2]
[419928224,1775513447248,-785.79,0.0001471,2]
[419928225,1775513447257,-985.59,0.0001471,2]
[419928226,1775513447266,-500.0,0.00014712,2]
[419928227,1775513447276,-30000.0,0.00014718,2]
[419928228,1775513447285,-162.0,0.0001472,2]
[419928229,1775513447294,-162.0,0.0001472,2]
[419928230,1775513447303,-2811.0,0.0001472,2]
[419928231,1775513447312,-1573.0,0.0001472,2]
[419928232,1775513447321,-749.78250185,0.00014767,2]
[419928233,1775513447331,-423.284873,0.00014793,2]
[419928234,1775513447340,-421.27560565,0.00014795,2]
[419928235,1775513447349,-500.0,0.00014795,2]
[419928236,1775513447358,-967.27624458,0.00014795,2]
[419928237,1775513447367,-1002.59752033,0.00014795,2]
[419928238,1775513447377,-1500.0,0.00014795,2]
[419928239,1775513447387,-1500.0,0.00014795,2]
[419928240,1775513447396,-503.28349871,0.00014795,2]
[419928241,1775513447406,-1500.0,0.00014795,2]
[419928242,1775513447415,-1500.0,0.00014795,2]
[419928243,1775513447424,-250.0,0.00014795,2]
[419928244,1775513447433,-501.0,0.00014836,3]
[419928245,1775513447443,-200.0,0.00014836,2]
[419928246,1775513447452,-200.0,0.00014836,2]
[419928247,1775513447461,-200.0,0.00014836,2]
[419928248,1775513447470,-200.0,0.00014836,2]
[419928249,1775513447479,-200.0,0.00014836,2]
[419928250,1775513447489,-200.0,0.00014836,2]
[419928251,1775513447498,-200.0,0.00014836,2]
[419928252,1775513447507,-200.0,0.00014836,2]
[419928253,1775513447516,-150.0,0.00014836,2]
[419928254,1775513447525,-666.0,0.0001484,2]
[419928255,1775513447535,-150.0,0.0001485,2]
[419928256,1775513447544,-277.0,0.0001485,2]
[419928257,1775513447553,-611.23,0.00014853,2]
[419928258,1775513447562,-3395.86,0.00014853,2]
[419928259,1775513447571,-955.63,0.00014853,2]
[419928260,1775513447580,-396.45,0.00014853,2]
[419928261,1775513447590,-152.0,0.0001488,13]
[419928262,1775513447599,-666.0,0.00014885,2]
[419928263,1775513447608,-578.20924308,0.00014886,2]
[419928264,1775513447617,-200.0,0.00014886,2]
[419928265,1775513447626,-1377.42282659,0.00014886,2]
[419928266,1775513447635,-695.39793187,0.00014886,2]
[419928267,1775513447644,-500.0,0.00014886,2]
[419928268,1775513447653,-500.0,0.00014886,2]
[419928269,1775513447662,-500.0,0.00014886,2]
[419928270,1775513447670,-500.0,0.00014886,2]
[419928271,1775513447679,-500.0,0.00014886,2]
[419928272,1775513447689,-500.0,0.00014886,2]
[419928273,1775513447698,-500.0,0.00014886,2]
[419928274,1775513447707,-500.0,0.00014886,2]
[419928275,1775513447716,-201.93286099,0.00014886,2]
[419928276,1775513447725,-500.0,0.00014886,2]
[419928277,1775513447734,-500.0,0.00014886,2]
[419928278,1775513447743,-500.0,0.00014886,2]
[419928279,1775513447754,-500.0,0.00014886,2]
[419928280,1775513447763,-1000.0,0.00014886,2]
[419928281,1775513447772,-1000.0,0.00014886,2]
[419928282,1775513447780,-750.0,0.00014886,2]
[419928283,1775513447790,-500.0,0.00014886,2]
[419928284,1775513447799,-9211.34798985,0.00014886,2]
[419928285,1775513447808,-743.50770149,0.00014886,2]
[419928286,1775513447817,-3000.0,0.00014886,2]
[419928287,1775513447826,-2500.0,0.00014886,2]
[419928288,1775513447835,-151.0,0.00014886,2]
[419928289,1775513447844,-668.65185757,0.00014886,2]
[419928290,1775513447853,-1500.0,0.00014886,2]
[419928291,1775513447862,-174.61919141,0.00014886,2]
[419928292,1775513447871,-1017.99332474,0.00014886,2]
[419928293,1775513447881,-279.9045709,0.00014886,2]
[419928294,1775513447890,-150.0,0.000149,2]
[419928295,1775513447900,-1116.0,0.00014934,2]
[419928296,1775513447909,-500.0,0.00014941,2]
[419928297,1775513447919,-9552.16786547,0.00014941,2]
[419928298,1775513447927,-151.0,0.00014941,2]
[419928299,1775513447937,-785.79,0.00014984,2]
[419928300,1775513447946,-985.59,0.00014984,2]
[419928301,1775513447955,-500.0,0.00014996,2]
[419928302,1775513447964,-151.0,0.00014996,2]
[419928303,1775513447973,-300.0,0.00015,2]
[419928304,1775513447982,-3004.0,0.00015,2]
[419928305,1775513447992,-10000.0,0.00015,15]
[419928306,1775513448001,-858.0,0.00015,15]
[419928307,1775513448011,-1613.0,0.00015005,2]
[419928308,1775513448020,-6453.0,0.00015005,2]
[419928309,1775513448029,-2811.0,0.0001504,2]
[419928310,1775513448038,-500.0,0.00015051,2]
[419928311,1775513448047,-151.0,0.00015051,2]
[419928312,1775513448056,-155.05158054,0.00015052,2]
[419928313,1775513448065,-3017.12385345,0.00015056,2]
[419928314,1775513448075,-338.52,0.00015057,2]
[419928315,1775513448084,-500.0,0.00015058,2]
[419928316,1775513448094,-2000.0,0.00015058,2]
[419928317,1775513448103,-1446.63,0.00015068,2]
[419928318,1775513448113,-840.61,0.00015068,2]
[419928319,1775513448122,-800.0,0.00015068,2]
[419928320,1775513448132,-3027.0,0.000151,2]
[419928321,1775513448141,-500.0,0.00015106,2]
[419928322,1775513448150,-151.0,0.00015106,2]
[419928323,1775513448159,-1950.0,0.00015135,2]
[419928325,1775513448168,-1950.0,0.00015135,2]
[419928326,1775513448177,-1950.0,0.00015135,2]
[419928328,1775513448186,-1950.0,0.00015135,2]
[419928329,1775513448195,-1950.0,0.00015135,2]
[419928330,1775513448204,-1950.0,0.00015135,2]
[419928331,1775513448214,-1950.0,0.00015135,2]
[419928332,1775513448223,-1950.0,0.00015135,2]
[419928333,1775513448233,-1950.0,0.00015135,2]
[419928334,1775513448242,-1817.0,0.00015135,2]
[419928335,1775513448251,-152.0,0.0001516,14]
[419928336,1775513448260,-500.0,0.00015161,2]
[419928337,1775513448269,-151.0,0.00015161,2]
[419928338,1775513448278,-291.86800938,0.00015164,2]
[419928339,1775513448287,-1148.372646,0.000152,2]
[419928340,1775513448297,-962.31706574,0.00015205,2]
[419928341,1775513448307,-150.0,0.00015208,2]
[419928342,1775513448316,-1000.0,0.00015213,2]
[419928343,1775513448325,-500.0,0.00015216,2]
[419928344,1775513448335,-151.0,0.00015216,2]
[419928345,1775513448344,-350.0,0.00015231,2]
[419928346,1775513448353,-300.0,0.0001524,2]
[419928347,1775513448362,-2565.81005708,0.00015251,2]
[419928348,1775513448372,-4310.90487752,0.00015251,2]
[419928349,1775513448381,-4145.26433669,0.00015251,2]
[419928350,1775513448390,-1221.85,0.00015257,2]
[419928351,1775513448401,-925.0,0.00015257,2]
[419928352,1775513448410,-210.3,0.00015258,2]
[419928353,1775513448419,-985.59,0.00015258,2]
[419928354,1775513448428,-962.31706574,0.0001526,2]
[419928355,1775513448438,-500.0,0.00015271,2]
[419928356,1775513448447,-151.0,0.00015271,2]
[419928357,1775513448456,-1456.0,0.00015275,2]
[419928358,1775513448466,-1000.0,0.00015276,2]
[419928359,1775513448475,-5888.0,0.00015293,2]
[419928360,1775513448484,-1000.0,0.00015296,2]
[419928361,1775513448493,-2427.07,0.00015312,2]
[419928362,1775513448503,-962.31706574,0.00015315,2]
[419928363,1775513448512,-500.0,0.00015326,2]
[419928364,1775513448521,-151.0,0.00015326,2]
[419928365,1775513448530,-1000.0,0.00015334,2]
[419928366,1775513448539,-1196.79007536,0.00015342,2]
[419928367,1775513448549,-2000.0,0.00015342,2]
[419928368,1775513448558,-2000.0,0.00015342,2]
[419928369,1775513448568,-2000.0,0.00015342,2]
[419928370,1775513448577,-1573.0,0.0001536,2]
[419928371,1775513448587,-162.0,0.0001536,2]
[419928372,1775513448596,-1129.0,0.00015363,2]
[419928373,1775513448605,-193.60696256,0.00015364,2]
[419928374,1775513448614,-962.31706574,0.0001537,2]
[419928375,1775513448623,-500.0,0.00015381,2]
[419928376,1775513448633,-151.0,0.00015381,2]
[419928377,1775513448642,-150.0,0.00015393,2]
[419928378,1775513448652,-1456.0,0.00015398,2]
[419928379,1775513448661,-6021.0,0.00015401,2]
[419928380,1775513448670,-2471.0,0.00015401,2]
[419928381,1775513448679,-435.22,0.00015401,2]
[419928382,1775513448688,-1456.0,0.00015416,2]
[419928383,1775513448697,-629.0,0.0001542,2]
[419928384,1775513448707,-1150.0,0.0001542,2]
[419928385,1775513448717,-1000.0,0.00015424,2]
[419928386,1775513448726,-200.0,0.00015434,2]
[419928387,1775513448735,-1428.38747117,0.00015434,2]
[419928388,1775513448744,-354.53684714,0.00015434,2]
[419928389,1775513448753,-771.01748645,0.00015434,2]
[419928390,1775513448762,-693.3919763,0.00015434,2]
[419928391,1775513448771,-181.08010149,0.00015434,2]
[419928392,1775513448780,-290.26104003,0.00015434,2]
[419928393,1775513448790,-1000.0,0.00015435,2]
[419928394,1775513448799,-500.0,0.00015436,2]
[419928395,1775513448808,-151.0,0.00015436,2]
[419928396,1775513448817,-152.0,0.0001544,15]
[419928397,1775513448826,-1000.0,0.00015442,2]
[419928398,1775513448834,-3000.0,0.00015452,2]
[419928399,1775513448843,-1300.0,0.00015452,2]
[419928400,1775513448852,-962.31706574,0.00015452,2]
[419928401,1775513448861,-150.0,0.00015454,2]
[419928402,1775513448870,-1201.69,0.00015471,2]
[419928403,1775513448880,-500.0,0.00015491,2]
[419928404,1775513448889,-151.0,0.00015491,2]
[419928405,1775513448898,-962.31706574,0.00015507,2]
[419928406,1775513448907,-1456.0,0.00015508,2]
[419928407,1775513448916,-985.59,0.00015532,2]
[419928408,1775513448925,-1000.0,0.00015533,2]
[419928409,1775513448934,-1000.0,0.00015534,2]
[419928410,1775513448943,-150.0,0.00015559,2]
[419928411,1775513448952,-962.31706574,0.00015562,2]
[419928412,1775513448961,-152.94716529,0.00015568,2]
[419928413,1775513448971,-1000.0,0.00015577,2]
[419928414,1775513448980,-1300.0,0.000156,5]
[419928415,1775513448989,-1000.0,0.00015601,2]
[419928417,1775513448998,-962.31706574,0.00015616,2]
[419928419,1775513449008,-1000.0,0.00015634,2]
[419928421,1775513449017,-855.53781818,0.00015634,2]
[419928423,1775513449026,-295.58825389,0.00015643,2]
[419928424,1775513449035,-259.46,0.00015666,2]
[419928425,1775513449044,-2811.0,0.0001568,2]
[419928426,1775513449053,-1573.0,0.0001568,2]
[419928427,1775513449062,-1573.0,0.0001568,2]
[419928428,1775513449071,-2811.0,0.0001568,2]
[419928429,1775513449080,-1573.0,0.0001568,2]
[419928430,1775513449090,-2811.0,0.0001568,2]
[419928431,1775513449099,-1573.0,0.0001568,2]
[419928432,1775513449108,-2811.0,0.0001568,2]
[419928433,1775513449117,-2811.0,0.0001568,2]
[419928434,1775513449126,-2081.0,0.0001568,2]
[419928435,1775513449135,-1007.92107023,0.0001568,2]
[419928437,1775513449144,-1071.46207988,0.0001568,2]
[419928439,1775513449153,-1002.74831223,0.0001568,2]
[419928440,1775513449162,-1095.09122652,0.0001568,2]
[419928441,1775513449171,-1116.0,0.0001568,2]
[419928443,1775513449180,-570.79309048,0.00015681,2]
[419928445,1775513449189,-350.0,0.00015683,2]
[419928447,1775513449198,-962.31706574,0.00015699,2]
[419928449,1775513449207,-240.3707,0.000157,2]
[419928450,1775513449216,-1300.0,0.000157,5]
[419928451,1775513449225,-2000.0,0.000157,2]
[419928452,1775513449234,-174.60324019,0.0001571,2]
[419928453,1775513449243,-152.0,0.0001572,16]
[419928454,1775513449252,-150.0,0.00015752,2]
[419928455,1775513449262,-962.31706574,0.00015753,2]
[419928456,1775513449271,-1446.63,0.00015753,2]
[419928457,1775513449280,-501.0,0.00015753,4]
[419928458,1775513449289,-1000.0,0.00015768,2]
[419928459,1775513449298,-1000.0,0.00015769,2]
[419928460,1775513449308,-150.0,0.00015771,2]
[419928461,1775513449317,-1000.0,0.0001578,2]
[419928462,1775513449326,-1000.0,0.00015782,2]
[419928463,1775513449335,-1300.0,0.000158,5]
[419928464,1775513449344,-2000.0,0.000158,2]
[419928465,1775513449353,-663.03,0.00015806,2]
[419928466,1775513449362,-962.31706574,0.00015808,2]
[419928467,1775513449371,-264.3,0.0001581,2]
[419928468,1775513449381,-163.324362,0.00015822,2]
[419928469,1775513449390,-368.0,0.00015822,2]
[419928470,1775513449399,-263.90271407,0.00015826,2]
[419928471,1775513449408,-5888.0,0.00015835,2]
[419928472,1775513449418,-5888.0,0.00015839,2]
[419928473,1775513449427,-264.3,0.0001584,2]
[419928474,1775513449436,-2000.0,0.0001584,2]
[419928475,1775513449444,-2000.0,0.0001584,2]
[419928476,1775513449453,-666.0,0.00015847,2]
[419928477,1775513449462,-794.941038,0.00015848,2]
[419928478,1775513449471,-151.0,0.00015848,2]
[419928479,1775513449481,-794.941038,0.00015848,2]
[419928480,1775513449490,-151.0,0.00015848,2]
[419928481,1775513449499,-794.941038,0.00015848,2]
[419928482,1775513449508,-794.941038,0.00015848,2]
[419928483,1775513449517,-310.094312,0.00015848,2]
[419928484,1775513449526,-221.193058,0.00015848,2]
[419928485,1775513449535,-310.094312,0.00015848,2]
[419928486,1775513449545,-221.193058,0.00015848,2]
[419928487,1775513449554,-310.094312,0.00015848,2]
[419928488,1775513449563,-221.193058,0.00015848,2]
[419928489,1775513449572,-310.094312,0.00015848,2]
[419928490,1775513449582,-221.193058,0.00015848,2]
[419928491,1775513449591,-1352.593209,0.00015848,2]
[419928492,1775513449923,-1352.593209,0.00015848,2]
[419928493,1775513449933,-1352.593209,0.00015848,2]
[419928494,1775513449942,-1352.593209,0.00015848,2]
[419928495,1775513449952,-1715.941805,0.00015848,2]
[419928496,1775513449961,-1715.941805,0.00015848,2]
[419928497,1775513449971,-1715.941805,0.00015848,2]
[419928498,1775513449980,-1715.941805,0.00015848,2]
[419928499,1775513449989,-500.0,0.00015848,2]
[419928500,1775513449999,-2000.0,0.0001585,2]
[419928501,1775513450008,-962.31706574,0.00015863,2]
[419928502,1775513450017,-264.3,0.0001587,2]
[419928503,1775513450026,-1456.0,0.00015871,2]
[419928504,1775513450036,-500.0,0.00015872,2]
[419928505,1775513450045,-200.0,0.00015872,2]
[419928506,1775513450054,-150.0,0.00015876,2]
[419928507,1775513450063,-1000.0,0.00015884,2]
[419928508,1775513450073,-500.0,0.0001589,2]
[419928509,1775513450082,-500.0,0.0001589,2]
[419928510,1775513450091,-500.0,0.0001589,2]
[419928511,1775513450100,-500.0,0.0001589,2]
[419928512,1775513450110,-500.0,0.0001589,2]
[419928513,1775513450119,-500.0,0.0001589,2]
[419928514,1775513450128,-500.0,0.0001589,2]
[419928515,1775513450138,-500.0,0.0001589,2]
[419928516,1775513450147,-2000.0,0.0001589,2]
[419928517,1775513450157,-2500.0,0.0001589,2]
[419928518,1775513450167,-693.92234375,0.0001589,2]
[419928519,1775513450176,-936.96138127,0.0001589,2]
[419928520,1775513450185,-183.931815,0.00015896,2]
[419928521,1775513450195,-151.0,0.00015896,2]
[419928522,1775513450204,-151.0,0.00015896,2]
[419928523,1775513450214,-151.0,0.00015896,2]
[419928524,1775513450224,-151.0,0.00015896,2]
[419928525,1775513450233,-151.0,0.00015896,2]
[419928526,1775513450243,-151.0,0.00015896,2]
[419928527,1775513450252,-151.0,0.00015896,2]
[419928528,1775513450261,-158.965579,0.00015896,2]
[419928529,1775513450271,-151.0,0.00015896,2]
[419928530,1775513450280,-151.0,0.00015896,2]
[419928531,1775513450289,-151.0,0.00015896,2]
[419928532,1775513450299,-151.0,0.00015896,2]
[419928533,1775513450309,-165.72124712,0.00015896,2]
[419928534,1775513450319,-151.0,0.00015896,2]
[419928535,1775513450329,-151.0,0.00015896,2]
[419928536,1775513450338,-151.0,0.00015896,2]
[419928537,1775513450349,-151.0,0.00015896,2]
[419928538,1775513450359,-151.0,0.00015896,2]
[419928539,1775513450368,-151.0,0.00015896,2]
[419928540,1775513450378,-151.0,0.00015896,2]
[419928541,1775513450388,-151.0,0.00015896,2]
[419928542,1775513450397,-151.0,0.00015896,2]
[419928543,1775513450408,-151.0,0.00015896,2]
[419928544,1775513450417,-151.0,0.00015896,2]
[419928545,1775513450427,-151.0,0.00015896,2]
[419928546,1775513450436,-151.0,0.00015896,2]
[419928547,1775513450445,-151.0,0.00015896,2]
[419928548,1775513450455,-151.0,0.00015896,2]
[419928549,1775513450464,-151.0,0.00015896,2]
[419928550,1775513450474,-151.0,0.00015896,2]
[419928551,1775513450483,-151.0,0.00015896,2]
[419928552,1775513450493,-151.0,0.00015896,2]
[419928553,1775513450503,-151.0,0.00015896,2]
[419928554,1775513450513,-151.0,0.00015896,2]
[419928555,1775513450523,-241.488972,0.00015896,2]
[419928556,1775513450532,-151.0,0.00015896,2]
[419928557,1775513450542,-151.0,0.00015896,2]
[419928558,1775513450551,-151.0,0.00015896,2]
[419928559,1775513450560,-151.0,0.00015896,2]
[419928560,1775513450569,-666.0,0.00015899,2]
[419928561,1775513450579,-1456.0,0.000159,2]
[419928562,1775513450588,-151.0,0.000159,2]
[419928563,1775513450598,-151.0,0.000159,2]
[419928564,1775513450607,-151.0,0.000159,2]
[419928565,1775513450617,-151.0,0.000159,2]
[419928566,1775513450627,-151.0,0.000159,2]
[419928567,1775513450637,-151.0,0.000159,2]
[419928568,1775513450647,-151.0,0.000159,2]
[419928569,1775513450657,-151.0,0.000159,2]
[419928570,1775513450666,-151.0,0.000159,2]
[419928571,1775513450675,-151.0,0.000159,2]
[419928572,1775513450685,-205.653364,0.000159,2]
[419928573,1775513450695,-151.0,0.000159,2]
[419928574,1775513450704,-25000.0,0.000159,3]
[419928575,1775513450714,-151.0,0.000159,2]
[419928576,1775513450724,-151.0,0.000159,2]
[419928577,1775513450734,-5800.0,0.000159,2]
[419928578,1775513450743,-151.0,0.000159,2]
[419928579,1775513450753,-151.0,0.000159,2]
[419928580,1775513450762,-310.015346,0.000159,2]
[419928581,1775513450772,-310.015346,0.000159,2]
[419928582,1775513450781,-151.0,0.000159,2]
[419928583,1775513450790,-151.0,0.000159,2]
[419928584,1775513450800,-151.0,0.000159,2]
[419928585,1775513450809,-21290.97079583,0.000159,3]
[419928586,1775513450818,-310.015346,0.000159,2]
[419928587,1775513450829,-151.0,0.000159,2]
[419928588,1775513450838,-310.015346,0.000159,2]
[419928589,1775513450847,-395.055722,0.000159,2]
[419928590,1775513450857,-151.0,0.000159,2]
[419928591,1775513450866,-395.055722,0.000159,2]